[Event "Panevezys ELITE Open 2021"]
[Site "Panevezys, Lithuania"]
[Date "2021.07.31"]
[Round "2.1"]
[White "Sulskis, Sarunas"]
[Black "Meshkovs, Nikita"]
[Result "1-0"]
[WhiteElo "2523"]
[BlackElo "2568"]
[PlyCount "93"]
[EventDate "2021.??.??"]
[TimeControl "90/40+30:0"]
[WhiteClock "0:18:07"]
[BlackClock "0:07:23"]

1. e4 {[%emt 0:00:06]} c5 {[%emt 0:01:07]} 2. Nc3 {[%emt 0:00:23]} Nc6 {[%emt
0:00:50]} 3. Bb5 {[%emt 0:03:20]} g6 {[%emt 0:01:58]} 4. Bxc6 {[%emt 0:02:14]}
bxc6 {[%emt 0:03:32]} 5. d4 {[%emt 0:04:18]} Bg7 {[%emt 0:02:58]} 6. dxc5 {
[%emt 0:08:24]} Qa5 {[%emt 0:03:42]} 7. Nge2 {[%emt 0:01:00]} Qxc5 {[%emt 0:07:
07]} 8. Be3 {[%emt 0:03:49]} Qa5 {[%emt 0:02:33]} 9. Qd2 {[%emt 0:14:00]} Rb8 {
[%emt 0:06:10]} 10. b3 {[%emt 0:09:47]} Nf6 {[%emt 0:14:22]} 11. Rd1 {[%emt 0:
02:23]} O-O {[%emt 0:12:20]} 12. O-O {[%emt 0:08:41]} Qc7 {[%emt 0:01:32]} 13.
Bf4 {[%emt 0:06:17]} d6 {[%emt 0:00:27]} 14. Bh6 {[%emt 0:00:45]} Bxh6 {[%emt
0:04:12]} 15. Qxh6 {[%emt 0:00:56]} d5 {[%emt 0:00:48]} 16. exd5 {[%emt 0:07:
53]} cxd5 {[%emt 0:00:14]} 17. Nxd5 {[%emt 0:00:21]} Nxd5 {[%emt 0:00:18]} 18.
Rxd5 {[%emt 0:00:07]} Qxc2 {[%emt 0:00:16]} 19. Nd4 {[%emt 0:00:57]} Qe4 {
[%emt 0:07:40]} 20. Nf3 {[%emt 0:02:03]} f6 {[%emt 0:01:51]} 21. Re1 {[%emt 0:
03:07]} Qxd5 {[%emt 0:00:40]} 22. Rxe7 {[%emt 0:00:07]} Qf7 {[%emt 0:00:07]}
23. Rxf7 {[%emt 0:00:10]} Rxf7 {[%emt 0:00:03]} 24. Qf4 {[%emt 0:00:45]} Rb6 {
[%emt 0:01:20]} 25. h4 {[%emt 0:00:35]} Bd7 {[%emt 0:10:03]} 26. Kh2 {[%emt 0:
02:16]} Kg7 {[%emt 0:00:38]} 27. Nd4 {[%emt 0:03:10]} Bc8 {[%emt 0:03:20]} 28.
f3 {[%emt 0:01:16]} Re7 {[%emt 0:01:26]} 29. Kg3 {[%emt 0:00:42]} Re5 {[%emt 0:
00:32]} 30. Qc1 {[%emt 0:01:08]} Be6 {[%emt 0:04:33]} 31. Qc7+ {[%emt 0:00:41]}
Bf7 {[%emt 0:00:02]} 32. Qxa7 {[%emt 0:00:20]} Rd6 {[%emt 0:00:02]} 33. a4 {
[%emt 0:02:49]} Red5 {[%emt 0:00:43]} 34. Nb5 {[%emt 0:04:19]} Rd7 {[%emt 0:00:
02]} 35. Qb6 {[%emt 0:00:44]} Re5 {[%emt 0:02:17]} 36. Nc3 {[%emt 0:02:51]} Rd3
{[%emt 0:00:29]} 37. Qc6 {[%emt 0:00:46]} Bxb3 {[%emt 0:03:27]} 38. Ne4 {[%emt
0:01:02]} Be6 {[%emt 0:01:10]} 39. a5 {[%emt 0:01:10]} Rd7 {[%emt 0:04:48]} 40.
a6 {[%emt 0:01:03]} Rf7 {[%emt 0:00:17]} 41. Nd6 {[%emt 0:03:12]} Bd5 {[%emt 0:
05:55]} 42. Qc8 {[%emt 0:05:44]} Ra7 {[%emt 0:08:19]} 43. Nb5 {[%emt 0:03:27]}
Rf7 {[%emt 0:03:43]} 44. Nc7 {[%emt 0:02:47]} Bc6 {[%emt 0:07:49]} 45. Ne6+ {
[%emt 0:02:29]} Rxe6 {[%emt 0:00:11]} 46. Qxe6 {[%emt 0:00:06]} Ba8 {[%emt 0:
00:26]} 47. h5 {[%emt 0:01:10]} 1-0

[Event "Panevezys ELITE Open 2021"]
[Site "Panevezys, Lithuania"]
[Date "2021.07.31"]
[Round "2.2"]
[White "Juksta, Karolis"]
[Black "Kazakouski, Valery"]
[Result "1/2-1/2"]
[WhiteElo "2438"]
[BlackElo "2499"]
[PlyCount "80"]
[EventDate "2021.??.??"]
[TimeControl "90/40+30:0"]
[WhiteClock "0:00:48"]
[BlackClock "0:06:34"]

1. d4 {[%emt 0:00:02]} Nf6 {[%emt 0:02:53]} 2. c4 {[%emt 0:00:08]} e6 {[%emt 0:
00:07]} 3. Nc3 {[%emt 0:00:06]} Bb4 {[%emt 0:00:07]} 4. f3 {[%emt 0:00:05]} c5
{[%emt 0:00:12]} 5. d5 {[%emt 0:00:08]} O-O {[%emt 0:00:29]} 6. e4 {[%emt 0:00:
08]} exd5 {[%emt 0:00:14]} 7. cxd5 {[%emt 0:00:06]} d6 {[%emt 0:00:06]} 8. Nge2
{[%emt 0:00:10]} Re8 {[%emt 0:00:34]} 9. Ng3 {[%emt 0:00:08]} Nbd7 {[%emt 0:00:
07]} 10. Be2 {[%emt 0:00:06]} a6 {[%emt 0:00:35]} 11. O-O {[%emt 0:00:06]} Ne5
{[%emt 0:00:06]} 12. Kh1 {[%emt 0:00:52]} h6 {[%emt 0:02:22]} 13. Qc2 {[%emt 0:
00:49]} Bd7 {[%emt 0:00:44]} 14. Nd1 {[%emt 0:03:18]} c4 {[%emt 0:10:15]} 15.
Ne3 {[%emt 0:00:44]} b5 {[%emt 0:02:30]} 16. Nef5 {[%emt 0:00:26]} Ng6 {[%emt
0:05:42]} 17. Be3 {[%emt 0:03:33]} Bxf5 {[%emt 0:04:14]} 18. Nxf5 {[%emt 0:00:
13]} Ne7 {[%emt 0:00:19]} 19. Nxe7+ {[%emt 0:09:04]} Qxe7 {[%emt 0:00:41]} 20.
Rad1 {[%emt 0:09:55]} Rac8 {[%emt 0:09:41]} 21. a3 {[%emt 0:22:27]} Bc5 {[%emt
0:01:57]} 22. Bc1 {[%emt 0:01:50]} Nd7 {[%emt 0:03:03]} 23. g4 {[%emt 0:19:53]}
Ne5 {[%emt 0:07:34]} 24. Bf4 {[%emt 0:03:37]} g5 {[%emt 0:06:01]} 25. Bg3 {
[%emt 0:03:54]} Ng6 {[%emt 0:03:31]} 26. b3 {[%emt 0:06:51]} cxb3 {[%emt 0:06:
28]} 27. Qxb3 {[%emt 0:00:06]} Ra8 {[%emt 0:05:23]} 28. Rd2 {[%emt 0:03:15]}
Qf6 {[%emt 0:01:20]} 29. Rc1 {[%emt 0:02:56]} Nf4 {[%emt 0:00:51]} 30. Bf1 {
[%emt 0:02:02]} h5 {[%emt 0:01:34]} 31. gxh5 {[%emt 0:00:16]} Nxh5 {[%emt 0:03:
08]} 32. Bh3 {[%emt 0:03:58]} Kg7 {[%emt 0:02:55]} 33. Rg2 {[%emt 0:00:43]}
Nxg3+ {[%emt 0:06:46]} 34. Rxg3 {[%emt 0:00:02]} Rh8 {[%emt 0:01:08]} 35. Bf5 {
[%emt 0:01:13]} Rh5 {[%emt 0:02:15]} 36. f4 {[%emt 0:04:15]} Rah8 {[%emt 0:02:
29]} 37. h3 {[%emt 0:00:02]} Kf8 {[%emt 0:01:02]} 38. fxg5 {[%emt 0:00:46]}
Rxg5 {[%emt 0:00:58]} 39. Rxg5 {[%emt 0:01:28]} Qxg5 {[%emt 0:00:09]} 40. Rf1 {
[%emt 0:00:16]} Rg8 {[%emt 0:03:12]} 1/2-1/2

[Event "Panevezys ELITE Open 2021"]
[Site "Panevezys, Lithuania"]
[Date "2021.07.31"]
[Round "2.3"]
[White "Stremavicius, Pijus"]
[Black "Kalvaitis, Sigitas"]
[Result "1/2-1/2"]
[WhiteElo "2146"]
[BlackElo "2164"]
[PlyCount "58"]
[EventDate "2021.??.??"]
[TimeControl "90/40+30:0"]
[WhiteClock "0:48:53"]
[BlackClock "0:28:51"]

1. Nf3 {[%emt 0:00:04]} Nf6 {[%emt 0:01:38]} 2. d4 {[%emt 0:00:09]} d5 {[%emt
0:00:05]} 3. g3 {[%emt 0:00:07]} e6 {[%emt 0:00:58]} 4. Bg2 {[%emt 0:00:09]}
Be7 {[%emt 0:00:04]} 5. O-O {[%emt 0:00:07]} O-O {[%emt 0:00:04]} 6. c4 {[%emt
0:09:11]} dxc4 {[%emt 0:01:47]} 7. Qa4 {[%emt 0:00:20]} a6 {[%emt 0:00:57]} 8.
Qxc4 {[%emt 0:00:08]} b5 {[%emt 0:00:09]} 9. Qc2 {[%emt 0:00:05]} Bb7 {[%emt 0:
00:18]} 10. Bd2 {[%emt 0:00:07]} Nc6 {[%emt 0:02:25]} 11. e3 {[%emt 0:03:54]}
Nb4 {[%emt 0:05:38]} 12. Bxb4 {[%emt 0:02:37]} Bxb4 {[%emt 0:00:04]} 13. Ne5 {
[%emt 0:01:15]} Bxg2 {[%emt 0:00:34]} 14. Kxg2 {[%emt 0:00:02]} Qd5+ {[%emt 0:
11:44]} 15. Nf3 {[%emt 0:00:28]} g5 {[%emt 0:16:52]} 16. h3 {[%emt 0:04:29]} h5
{[%emt 0:01:08]} 17. g4 {[%emt 0:06:15]} hxg4 {[%emt 0:00:05]} 18. hxg4 {[%emt
0:00:04]} Kg7 {[%emt 0:02:05]} 19. a3 {[%emt 0:02:54]} Be7 {[%emt 0:12:06]} 20.
Nc3 {[%emt 0:00:30]} Qb7 {[%emt 0:00:12]} 21. Rh1 {[%emt 0:07:33]} Rh8 {[%emt
0:00:22]} 22. Rac1 {[%emt 0:08:20]} Nxg4 {[%emt 0:04:21]} 23. Rxh8 {[%emt 0:00:
42]} Rxh8 {[%emt 0:00:08]} 24. Qe4 {[%emt 0:00:04]} Qxe4 {[%emt 0:01:30]} 25.
Nxe4 {[%emt 0:00:01]} Nf6 {[%emt 0:04:13]} 26. Nxf6 {[%emt 0:01:30]} Bxf6 {
[%emt 0:01:43]} 27. Rxc7 {[%emt 0:00:06]} Rb8 {[%emt 0:01:18]} 28. b4 {[%emt 0:
03:34]} a5 {[%emt 0:03:41]} 29. bxa5 {[%emt 0:01:16]} Ra8 {[%emt 0:00:05]}
1/2-1/2

[Event "Panevezys ELITE Open 2021"]
[Site "Panevezys, Lithuania"]
[Date "2021.07.31"]
[Round "2.4"]
[White "Carlsson, Ludvig"]
[Black "Brazdzionis, Andrius"]
[Result "0-1"]
[WhiteElo "2258"]
[BlackElo "2321"]
[PlyCount "44"]
[EventDate "2021.??.??"]
[TimeControl "90/40+30:0"]
[WhiteClock "0:55:52"]
[BlackClock "1:10:56"]

1. d4 {[%emt 0:01:48]} Nf6 {[%emt 0:00:18]} 2. c4 {[%emt 0:00:08]} e6 {[%emt 0:
00:49]} 3. Nc3 {[%emt 0:00:08]} Bb4 {[%emt 0:00:17]} 4. a3 {[%emt 0:00:11]}
Bxc3+ {[%emt 0:00:11]} 5. bxc3 {[%emt 0:00:04]} c5 {[%emt 0:00:53]} 6. e3 {
[%emt 0:00:08]} Nc6 {[%emt 0:02:51]} 7. Bd3 {[%emt 0:00:09]} d6 {[%emt 0:04:09]
} 8. Ne2 {[%emt 0:00:45]} e5 {[%emt 0:01:17]} 9. d5 {[%emt 0:04:37]} e4 {[%emt
0:00:39]} 10. Bb1 {[%emt 0:07:32]} Ne5 {[%emt 0:03:36]} 11. Ng3 {[%emt 0:00:21]
} O-O {[%emt 0:01:04]} 12. Nxe4 {[%emt 0:03:12]} Nxe4 {[%emt 0:00:21]} 13. Bxe4
{[%emt 0:00:06]} Qh4 {[%emt 0:00:08]} 14. Bd3 {[%emt 0:02:13]} Bg4 {[%emt 0:02:
00]} 15. Qc2 {[%emt 0:07:51]} Rae8 {[%emt 0:01:32]} 16. O-O {[%emt 0:11:21]}
Nf3+ {[%emt 0:02:14]} 17. gxf3 {[%emt 0:00:07]} Bxf3 {[%emt 0:00:03]} 18. Bxh7+
{[%emt 0:00:07]} Qxh7 {[%emt 0:03:08]} 19. Qxh7+ {[%emt 0:00:39]} Kxh7 {[%emt
0:00:05]} 20. Rb1 {[%emt 0:01:42]} Re5 {[%emt 0:04:39]} 21. Re1 {[%emt 0:02:14]
} Rg5+ {[%emt 0:00:19]} 22. Kf1 {[%emt 0:00:06]} Rg2 {[%emt 0:00:11]} 0-1

[Event "Panevezys ELITE Open 2021"]
[Site "Panevezys, Lithuania"]
[Date "2021.07.31"]
[Round "2.5"]
[White "Salna, Aleksandras"]
[Black "Sedykh, Mikhail"]
[Result "1-0"]
[WhiteElo "2166"]
[BlackElo "2119"]
[PlyCount "106"]
[EventDate "2021.??.??"]
[TimeControl "90/40+30:0"]
[WhiteClock "1:06:11"]
[BlackClock "0:28:46"]

1. d4 {[%emt 0:02:00]} d5 {[%emt 0:00:13]} 2. c4 {[%emt 0:00:10]} e6 {[%emt 0:
00:04]} 3. Nc3 {[%emt 0:00:11]} Nf6 {[%emt 0:00:04]} 4. Nf3 {[%emt 0:00:08]}
Be7 {[%emt 0:00:22]} 5. Bf4 {[%emt 0:00:08]} O-O {[%emt 0:00:30]} 6. e3 {[%emt
0:00:41]} b6 {[%emt 0:01:33]} 7. Bd3 {[%emt 0:01:57]} c5 {[%emt 0:01:53]} 8.
cxd5 {[%emt 0:03:02]} exd5 {[%emt 0:07:12]} 9. O-O {[%emt 0:02:08]} Bg4 {[%emt
0:08:16]} 10. h3 {[%emt 0:05:32]} Bh5 {[%emt 0:00:46]} 11. dxc5 {[%emt 0:05:02]
} bxc5 {[%emt 0:06:33]} 12. g4 {[%emt 0:04:06]} Bg6 {[%emt 0:02:20]} 13. Bxg6 {
[%emt 0:01:12]} hxg6 {[%emt 0:02:31]} 14. g5 {[%emt 0:00:22]} Ne4 {[%emt 0:07:
37]} 15. Qxd5 {[%emt 0:02:03]} Qxd5 {[%emt 0:18:04]} 16. Nxd5 {[%emt 0:00:07]}
Bd8 {[%emt 0:00:08]} 17. Ne5 {[%emt 0:07:59]} Kh7 {[%emt 0:11:36]} 18. Rac1 {
[%emt 0:08:46]} Na6 {[%emt 0:09:45]} 19. h4 {[%emt 0:02:37]} f6 {[%emt 0:00:39]
} 20. gxf6 {[%emt 0:00:18]} gxf6 {[%emt 0:00:10]} 21. Nc4 {[%emt 0:02:52]} g5 {
[%emt 0:10:25]} 22. hxg5 {[%emt 0:01:49]} fxg5 {[%emt 0:00:38]} 23. Be5 {[%emt
0:02:52]} Rc8 {[%emt 0:02:57]} 24. f3 {[%emt 0:02:21]} Nf6 {[%emt 0:00:20]} 25.
Rcd1 {[%emt 0:00:16]} Nb8 {[%emt 0:03:36]} 26. Nd6 {[%emt 0:01:53]} Rc6 {[%emt
0:00:08]} 27. Nxf6+ {[%emt 0:00:12]} Bxf6 {[%emt 0:00:10]} 28. Bxf6 {[%emt 0:
00:07]} Rxf6 {[%emt 0:00:06]} 29. Ne4 {[%emt 0:00:05]} Rf5 {[%emt 0:02:29]} 30.
Rd8 {[%emt 0:01:25]} Rb6 {[%emt 0:00:47]} 31. b3 {[%emt 0:01:01]} Nc6 {[%emt 0:
01:20]} 32. Rd7+ {[%emt 0:00:20]} Kg6 {[%emt 0:00:35]} 33. Rd6+ {[%emt 0:02:50]
} Kg7 {[%emt 0:00:08]} 34. Ng3 {[%emt 0:00:14]} Re5 {[%emt 0:00:33]} 35. Rfd1 {
[%emt 0:05:22]} Kf7 {[%emt 0:02:15]} 36. Ne4 {[%emt 0:00:29]} g4 {[%emt 0:00:
38]} 37. Rd7+ {[%emt 0:01:37]} Ne7 {[%emt 0:00:06]} 38. Nd6+ {[%emt 0:00:11]}
Rxd6 {[%emt 0:01:36]} 39. R1xd6 {[%emt 0:00:00]} Rxe3 {[%emt 0:00:51]} 40. fxg4
{[%emt 0:00:18]} Rg3+ {[%emt 0:00:16]} 41. Kf2 {[%emt 0:00:22]} Rxg4 {[%emt 0:
00:13]} 42. Rxa7 {[%emt 0:00:10]} Re4 {[%emt 0:03:24]} 43. Rdd7 {[%emt 0:02:57]
} Ke8 {[%emt 0:00:06]} 44. Rxe7+ {[%emt 0:00:05]} Rxe7 {[%emt 0:00:03]} 45.
Rxe7+ {[%emt 0:00:05]} Kxe7 {[%emt 0:00:02]} 46. Ke3 {[%emt 0:00:16]} Kd6 {
[%emt 0:00:28]} 47. Kd3 {[%emt 0:00:05]} Kd5 {[%emt 0:00:45]} 48. Kc3 {[%emt 0:
00:06]} Kd6 {[%emt 0:01:22]} 49. Kc4 {[%emt 0:00:07]} Kc6 {[%emt 0:00:03]} 50.
a3 {[%emt 0:00:45]} Kb6 {[%emt 0:00:03]} 51. a4 {[%emt 0:00:05]} Kc6 {[%emt 0:
00:04]} 52. a5 {[%emt 0:00:04]} Kd6 {[%emt 0:00:02]} 53. Kb5 {[%emt 0:00:22]}
Kd5 {[%emt 0:00:09]} 1-0

[Event "Panevezys ELITE Open 2021"]
[Site "Panevezys, Lithuania"]
[Date "2021.07.31"]
[Round "2.6"]
[White "Greicius, Pijus"]
[Black "Steponavicius, Stasys"]
[Result "1/2-1/2"]
[WhiteElo "1902"]
[BlackElo "2209"]
[PlyCount "63"]
[EventDate "2021.??.??"]
[TimeControl "90/40+30:0"]
[WhiteClock "0:21:21"]
[BlackClock "0:03:55"]

1. d4 {[%emt 0:00:02]} Nf6 {[%emt 0:00:18]} 2. c4 {[%emt 0:00:14]} e6 {[%emt 0:
00:06]} 3. Nc3 {[%emt 0:00:18]} Bb4 {[%emt 0:00:11]} 4. f3 {[%emt 0:00:18]} Nc6
{[%emt 0:02:50]} 5. a3 {[%emt 0:04:05]} Bxc3+ {[%emt 0:01:17]} 6. bxc3 {[%emt
0:00:08]} b6 {[%emt 0:01:03]} 7. e4 {[%emt 0:00:31]} Ba6 {[%emt 0:02:01]} 8.
Bd3 {[%emt 0:01:25]} Na5 {[%emt 0:01:09]} 9. Qe2 {[%emt 0:06:17]} Nb3 {[%emt 0:
00:36]} 10. Rb1 {[%emt 0:00:23]} Nxc1 {[%emt 0:00:06]} 11. Rxc1 {[%emt 0:00:06]
} Qe7 {[%emt 0:00:09]} 12. Ra1 {[%emt 0:00:50]} e5 {[%emt 0:05:18]} 13. Nh3 {
[%emt 0:05:41]} O-O {[%emt 0:03:43]} 14. O-O {[%emt 0:02:19]} d6 {[%emt 0:01:
17]} 15. Kh1 {[%emt 0:19:13]} Rae8 {[%emt 0:02:25]} 16. Rae1 {[%emt 0:03:28]}
Bc8 {[%emt 0:03:14]} 17. Nf2 {[%emt 0:04:37]} Nh5 {[%emt 0:01:44]} 18. g3 {
[%emt 0:01:42]} Qg5 {[%emt 0:06:34]} 19. Nd1 {[%emt 0:05:28]} Re6 {[%emt 0:11:
38]} 20. Ne3 {[%emt 0:11:29]} Rh6 {[%emt 0:04:08]} 21. Kg1 {[%emt 0:00:26]} Bh3
{[%emt 0:14:14]} 22. Nf5 {[%emt 0:08:10]} Bxf5 {[%emt 0:06:01]} 23. exf5 {
[%emt 0:00:28]} Nf4 {[%emt 0:00:15]} 24. Qe3 {[%emt 0:02:19]} Qh5 {[%emt 0:04:
15]} 25. h4 {[%emt 0:00:54]} g6 {[%emt 0:10:58]} 26. gxf4 {[%emt 0:02:59]} Qxh4
{[%emt 0:00:32]} 27. Re2 {[%emt 0:00:16]} exf4 {[%emt 0:08:58]} 28. Qd2 {[%emt
0:00:14]} Qh1+ {[%emt 0:03:22]} 29. Kf2 {[%emt 0:00:05]} Qh4+ {[%emt 0:00:25]}
30. Kg1 {[%emt 0:00:05]} Qh1+ {[%emt 0:02:56]} 31. Kf2 {[%emt 0:00:11]} Qh4+ {
[%emt 0:00:23]} 32. Kg1 {[%emt 0:00:25]} 1/2-1/2

[Event "Panevezys ELITE Open 2021"]
[Site "Panevezys, Lithuania"]
[Date "2021.07.31"]
[Round "2.7"]
[White "Butvilas, Aistis"]
[Black "Bagvilas, Lukas"]
[Result "1-0"]
[WhiteElo "2088"]
[BlackElo "2000"]
[PlyCount "97"]
[EventDate "2021.??.??"]
[TimeControl "90/40+30:0"]
[WhiteClock "0:30:21"]
[BlackClock "0:31:08"]

1. d4 {[%emt 0:00:01]} e6 {[%emt 0:01:14]} 2. c4 {[%emt 0:00:09]} d5 {[%emt 0:
00:13]} 3. Nc3 {[%emt 0:00:11]} c6 {[%emt 0:00:07]} 4. Nf3 {[%emt 0:03:59]}
dxc4 {[%emt 0:00:17]} 5. g3 {[%emt 0:01:22]} Nf6 {[%emt 0:05:38]} 6. Bg2 {
[%emt 0:00:16]} Nbd7 {[%emt 0:01:00]} 7. O-O {[%emt 0:00:51]} Be7 {[%emt 0:00:
12]} 8. Qc2 {[%emt 0:03:48]} O-O {[%emt 0:00:24]} 9. Rd1 {[%emt 0:02:52]} b5 {
[%emt 0:10:14]} 10. Ng5 {[%emt 0:14:38]} Qb6 {[%emt 0:03:21]} 11. a4 {[%emt 0:
20:47]} b4 {[%emt 0:01:23]} 12. a5 {[%emt 0:06:18]} Qa6 {[%emt 0:03:43]} 13.
Na4 {[%emt 0:01:16]} h6 {[%emt 0:07:00]} 14. Nf3 {[%emt 0:02:39]} Qb5 {[%emt 0:
03:47]} 15. e4 {[%emt 0:08:18]} Ba6 {[%emt 0:01:32]} 16. Bf4 {[%emt 0:01:33]}
Rac8 {[%emt 0:07:39]} 17. Nd2 {[%emt 0:02:16]} b3 {[%emt 0:14:22]} 18. Qc1 {
[%emt 0:00:07]} Bb4 {[%emt 0:00:52]} 19. Nc3 {[%emt 0:01:47]} Qb7 {[%emt 0:01:
39]} 20. Ndb1 {[%emt 0:05:32]} Rfd8 {[%emt 0:02:10]} 21. Ra4 {[%emt 0:03:13]}
Re8 {[%emt 0:09:57]} 22. Bh3 {[%emt 0:02:47]} Rcd8 {[%emt 0:06:49]} 23. e5 {
[%emt 0:07:19]} Nd5 {[%emt 0:03:16]} 24. Ne4 {[%emt 0:00:10]} Nxf4 {[%emt 0:08:
54]} 25. Qxf4 {[%emt 0:00:20]} Qb8 {[%emt 0:01:51]} 26. Bg4 {[%emt 0:05:17]} c5
{[%emt 0:02:29]} 27. Nd6 {[%emt 0:00:31]} Re7 {[%emt 0:00:28]} 28. Nxf7 {[%emt
0:00:27]} Rf8 {[%emt 0:00:34]} 29. Nxh6+ {[%emt 0:00:26]} gxh6 {[%emt 0:00:39]}
30. Qxh6 {[%emt 0:00:10]} Qe8 {[%emt 0:01:21]} 31. Bh5 {[%emt 0:00:18]} Qc8 {
[%emt 0:00:52]} 32. Bg4 {[%emt 0:01:15]} Qe8 {[%emt 0:01:40]} 33. Bh5 {[%emt 0:
00:04]} Qc8 {[%emt 0:00:08]} 34. Bg4 {[%emt 0:00:05]} Rfe8 {[%emt 0:01:00]} 35.
Nd2 {[%emt 0:03:30]} Bxd2 {[%emt 0:00:26]} 36. Rxd2 {[%emt 0:00:09]} Qc6 {
[%emt 0:00:21]} 37. d5 {[%emt 0:02:12]} Qxa4 {[%emt 0:00:12]} 38. Bxe6+ {[%emt
0:00:22]} Rxe6 {[%emt 0:00:06]} 39. dxe6 {[%emt 0:00:02]} Nf8 {[%emt 0:03:11]}
40. Rd7 {[%emt 0:01:57]} Qxd7 {[%emt 0:00:51]} 41. exd7 {[%emt 0:00:09]} Nxd7 {
[%emt 0:00:25]} 42. Qg6+ {[%emt 0:00:55]} Kf8 {[%emt 0:00:17]} 43. e6 {[%emt 0:
00:14]} Re7 {[%emt 0:00:35]} 44. Qf5+ {[%emt 0:02:43]} Ke8 {[%emt 0:00:20]} 45.
exd7+ {[%emt 0:00:12]} Rxd7 {[%emt 0:00:11]} 46. Qe6+ {[%emt 0:00:08]} Kd8 {
[%emt 0:01:08]} 47. Qxa6 {[%emt 0:00:11]} Rd4 {[%emt 0:00:07]} 48. Qxa7 {[%emt
0:00:40]} c3 {[%emt 0:00:17]} 49. Qb6+ {[%emt 0:00:15]} 1-0

[Event "Panevezys ELITE Open 2021"]
[Site "Panevezys, Lithuania"]
[Date "2021.07.31"]
[Round "2.9"]
[White "Milovs, Daniels"]
[Black "Bazevicius, Albertas"]
[Result "1-0"]
[WhiteElo "1743"]
[BlackElo "1867"]
[PlyCount "105"]
[EventDate "2021.??.??"]
[TimeControl "90/40+30:0"]
[WhiteClock "0:15:52"]
[BlackClock "0:24:15"]

1. e4 {[%emt 0:01:48]} c5 {[%emt 0:00:04]} 2. Be2 {[%emt 0:00:02]} Nc6 {[%emt
0:00:10]} 3. f4 {[%emt 0:00:00]} g6 {[%emt 0:00:21]} 4. Nf3 {[%emt 0:00:03]}
Bg7 {[%emt 0:00:05]} 5. d3 {[%emt 0:00:12]} d6 {[%emt 0:01:22]} 6. c3 {[%emt 0:
00:13]} Nh6 {[%emt 0:05:18]} 7. O-O {[%emt 0:01:39]} O-O {[%emt 0:00:53]} 8.
Na3 {[%emt 0:01:39]} e6 {[%emt 0:05:45]} 9. Nc2 {[%emt 0:10:46]} d5 {[%emt 0:
02:23]} 10. e5 {[%emt 0:04:41]} b6 {[%emt 0:03:11]} 11. h3 {[%emt 0:06:39]} f6
{[%emt 0:04:18]} 12. d4 {[%emt 0:02:51]} Bd7 {[%emt 0:04:47]} 13. Be3 {[%emt 0:
04:23]} Qe7 {[%emt 0:04:45]} 14. Qd2 {[%emt 0:08:31]} Nf7 {[%emt 0:00:33]} 15.
exf6 {[%emt 0:06:20]} Bxf6 {[%emt 0:00:53]} 16. Ne5 {[%emt 0:00:23]} c4 {[%emt
0:09:18]} 17. Rae1 {[%emt 0:13:06]} b5 {[%emt 0:02:33]} 18. Bf2 {[%emt 0:04:10]
} Ncxe5 {[%emt 0:11:23]} 19. dxe5 {[%emt 0:01:37]} Bg7 {[%emt 0:00:36]} 20. b4
{[%emt 0:02:52]} Rfc8 {[%emt 0:01:42]} 21. Nd4 {[%emt 0:02:26]} Bh6 {[%emt 0:
04:16]} 22. Be3 {[%emt 0:03:11]} Kh8 {[%emt 0:01:38]} 23. Bf3 {[%emt 0:03:18]}
Rg8 {[%emt 0:00:52]} 24. Bxd5 {[%emt 0:06:07]} exd5 {[%emt 0:00:39]} 25. e6 {
[%emt 0:00:01]} Bg7 {[%emt 0:02:19]} 26. exd7 {[%emt 0:02:43]} Qxd7 {[%emt 0:
00:03]} 27. f5 {[%emt 0:00:42]} Nd6 {[%emt 0:08:18]} 28. fxg6 {[%emt 0:03:52]}
hxg6 {[%emt 0:00:08]} 29. Qf2 {[%emt 0:00:39]} Rgf8 {[%emt 0:04:16]} 30. Qh4+ {
[%emt 0:00:01]} Kg8 {[%emt 0:00:05]} 31. Qg5 {[%emt 0:01:08]} Nf5 {[%emt 0:07:
52]} 32. Qxg6 {[%emt 0:01:49]} Nxe3 {[%emt 0:00:32]} 33. Rxf8+ {[%emt 0:02:10]}
Rxf8 {[%emt 0:00:08]} 34. Rxe3 {[%emt 0:00:09]} Qf7 {[%emt 0:06:01]} 35. Qxf7+
{[%emt 0:00:25]} Rxf7 {[%emt 0:00:04]} 36. Nxb5 {[%emt 0:01:06]} Bh6 {[%emt 0:
05:02]} 37. Re5 {[%emt 0:03:56]} Bf4 {[%emt 0:03:14]} 38. Rxd5 {[%emt 0:01:30]}
Be3+ {[%emt 0:00:00]} 39. Kh2 {[%emt 0:01:13]} Bf4+ {[%emt 0:01:22]} 40. Kg1 {
[%emt 0:00:24]} Be3+ {[%emt 0:00:04]} 41. Kh2 {[%emt 0:04:05]} Rf2 {[%emt 0:04:
15]} 42. Kg3 {[%emt 0:04:11]} Rxa2 {[%emt 0:00:17]} 43. Nd6 {[%emt 0:01:31]}
Bf2+ {[%emt 0:01:16]} 44. Kf3 {[%emt 0:01:08]} Be1 {[%emt 0:00:24]} 45. Ne4 {
[%emt 0:02:17]} Ra3 {[%emt 0:00:58]} 46. Ra5 {[%emt 0:01:40]} Rb3 {[%emt 0:01:
41]} 47. Rxa7 {[%emt 0:00:59]} Bxc3 {[%emt 0:00:03]} 48. Nxc3 {[%emt 0:00:23]}
Rxc3+ {[%emt 0:00:02]} 49. Kf2 {[%emt 0:02:15]} Rb3 {[%emt 0:00:11]} 50. Rb7 {
[%emt 0:00:45]} Rb2+ {[%emt 0:00:53]} 51. Kg1 {[%emt 0:01:27]} c3 {[%emt 0:04:
48]} 52. Rc7 {[%emt 0:01:45]} c2 {[%emt 0:00:03]} 53. Kh2 {[%emt 0:00:14]} 1-0

[Event "Panevezys ELITE Open 2021"]
[Site "Panevezys, Lithuania"]
[Date "2021.07.31"]
[Round "2.10"]
[White "Voroblievas, Arturas"]
[Black "Michailov, Andrej"]
[Result "1-0"]
[WhiteElo "1699"]
[BlackElo "1645"]
[PlyCount "65"]
[EventDate "2021.??.??"]
[TimeControl "90/40+30:0"]
[WhiteClock "0:17:51"]
[BlackClock "0:00:40"]

1. e4 {[%emt 0:00:03]} e5 {[%emt 0:01:28]} 2. Nf3 {[%emt 0:00:07]} Nc6 {[%emt
0:00:01]} 3. Bb5 {[%emt 0:00:12]} a6 {[%emt 0:00:01]} 4. Ba4 {[%emt 0:00:09]}
Nf6 {[%emt 0:00:02]} 5. O-O {[%emt 0:00:19]} Be7 {[%emt 0:00:04]} 6. Re1 {
[%emt 0:00:37]} b5 {[%emt 0:00:06]} 7. Bb3 {[%emt 0:00:06]} O-O {[%emt 0:00:07]
} 8. h3 {[%emt 0:01:28]} d6 {[%emt 0:13:50]} 9. c3 {[%emt 0:06:56]} Na5 {[%emt
0:02:44]} 10. Bc2 {[%emt 0:00:11]} c5 {[%emt 0:00:01]} 11. a4 {[%emt 0:01:58]}
Bd7 {[%emt 0:05:10]} 12. d3 {[%emt 0:05:03]} Nc6 {[%emt 0:01:15]} 13. Nbd2 {
[%emt 0:00:54]} Qc7 {[%emt 0:01:32]} 14. Nf1 {[%emt 0:00:20]} d5 {[%emt 0:03:
58]} 15. Ng3 {[%emt 0:07:04]} Rfe8 {[%emt 0:36:21]} 16. exd5 {[%emt 0:08:12]}
Nxd5 {[%emt 0:00:43]} 17. Bb3 {[%emt 0:00:57]} Be6 {[%emt 0:06:15]} 18. Qe2 {
[%emt 0:09:21]} Nxc3 {[%emt 0:06:44]} 19. bxc3 {[%emt 0:01:33]} Bxb3 {[%emt 0:
00:02]} 20. axb5 {[%emt 0:00:14]} axb5 {[%emt 0:00:22]} 21. Rxa8 {[%emt 0:01:
10]} Rxa8 {[%emt 0:00:01]} 22. Qb2 {[%emt 0:08:25]} c4 {[%emt 0:00:38]} 23.
dxc4 {[%emt 0:05:35]} Bxc4 {[%emt 0:02:13]} 24. Nf5 {[%emt 0:06:41]} Bc5 {
[%emt 0:00:39]} 25. Be3 {[%emt 0:01:06]} Qb6 {[%emt 0:04:54]} 26. Qc2 {[%emt 0:
07:56]} g6 {[%emt 0:01:31]} 27. Nh6+ {[%emt 0:01:07]} Kg7 {[%emt 0:00:21]} 28.
Ng4 {[%emt 0:01:00]} Bxe3 {[%emt 0:03:25]} 29. Nxe3 {[%emt 0:02:45]} Qc5 {
[%emt 0:03:54]} 30. Qe4 {[%emt 0:01:35]} Ra2 {[%emt 0:02:56]} 31. Qh4 {[%emt 0:
04:26]} Bd3 {[%emt 0:02:01]} 32. Ng4 {[%emt 0:01:04]} Qd6 {[%emt 0:02:41]} 33.
Qh6+ {[%emt 0:00:27]} 1-0